[Event "*** Titled Tuesday Blitz"]
[Site "Chess.com"]
[Date "2021.04.06"]
[Round "7"]
[White "kirillshevchenko"]
[Black "GM_Crest"]
[Result "1-0"]
[WhiteElo "2839"]
[BlackElo "2708"]
[TimeControl "180+1"]
[EndTime "11:21:14 PDT"]
[Termination "kirillshevchenko won by resignation"]

1. e4 {[%clk 0:02:55]} 1... e6 {[%clk 0:02:56.6]} 2. d4 {[%clk 0:02:45.3]} 2...
d5 {[%clk 0:02:56.8]} 3. Nc3 {[%clk 0:02:45.6]} 3... Bb4 {[%clk 0:02:56.7]} 4.
e5 {[%clk 0:02:43.4]} 4... c5 {[%clk 0:02:56.7]} 5. a3 {[%clk 0:02:44]} 5...
Bxc3+ {[%clk 0:02:57]} 6. bxc3 {[%clk 0:02:44.9]} 6... Nc6 {[%clk 0:02:57.5]} 7.
Qg4 {[%clk 0:02:43.6]} 7... g6 {[%clk 0:02:57.2]} 8. h4 {[%clk 0:02:41]} 8...
Qa5 {[%clk 0:02:50.1]} 9. Bd2 {[%clk 0:02:29.8]} 9... h6 {[%clk 0:02:50.3]} 10.
a4 {[%clk 0:02:01.3]} 10... Bd7 {[%clk 0:02:48.6]} 11. Nf3 {[%clk 0:01:52]}
11... O-O-O {[%clk 0:02:43.2]} 12. dxc5 {[%clk 0:01:46.2]} 12... Qxc5 {[%clk
0:02:39.2]} 13. Bd3 {[%clk 0:01:45.5]} 13... Kb8 {[%clk 0:02:10.4]} 14. O-O
{[%clk 0:01:43.1]} 14... Rc8 {[%clk 0:01:59.8]} 15. Qf4 {[%clk 0:01:38.3]} 15...
Rf8 {[%clk 0:01:55.8]} 16. Be3 {[%clk 0:01:31]} 16... Qa5 {[%clk 0:01:50.4]} 17.
Nd4 {[%clk 0:01:29.5]} 17... Nxd4 {[%clk 0:01:40.8]} 18. Bxd4 {[%clk 0:01:26.9]}
18... Ne7 {[%clk 0:01:38.2]} 19. Rfb1 {[%clk 0:01:20.1]} 19... Nc6 {[%clk
0:01:38.2]} 20. Rb5 {[%clk 0:01:09.1]} 20... Qc7 {[%clk 0:01:38.2]} 21. Rab1
{[%clk 0:01:09.2]} 21... Bc8 {[%clk 0:01:38.2]} 22. Bc5 {[%clk 0:01:01.6]} 22...
Nxe5 {[%clk 0:01:30.9]} 23. Bxf8 {[%clk 0:00:48.1]} 23... Rxf8 {[%clk
0:01:30.3]} 24. Qxh6 {[%clk 0:00:40.2]} 24... Rd8 {[%clk 0:01:30]} 25. Qf4
{[%clk 0:00:38.7]} 25... Nc6 {[%clk 0:01:07.2]} 26. Qxc7+ {[%clk 0:00:31.7]}
26... Kxc7 {[%clk 0:01:08.1]} 27. c4 {[%clk 0:00:30.3]} 27... a6 {[%clk
0:01:01.9]} 28. R5b2 {[%clk 0:00:23.1]} 28... d4 {[%clk 0:01:02.4]} 29. Re1
{[%clk 0:00:19.6]} 29... e5 {[%clk 0:01:00.3]} 30. Be4 {[%clk 0:00:19.5]} 30...
Re8 {[%clk 0:00:56.4]} 31. Bd5 {[%clk 0:00:19.8]} 31... Be6 {[%clk 0:00:53.6]}
32. Bxc6 {[%clk 0:00:19.1]} 32... bxc6 {[%clk 0:00:47.7]} 33. Rxe5 {[%clk
0:00:19.4]} 33... Kd6 {[%clk 0:00:48.4]} 34. Re4 {[%clk 0:00:18.8]} 34... c5
{[%clk 0:00:48.5]} 35. Rb6+ {[%clk 0:00:18.6]} 35... Kc7 {[%clk 0:00:48.8]} 36.
Rxa6 {[%clk 0:00:18.1]} 36... Rb8 {[%clk 0:00:48.9]} 37. Re5 {[%clk 0:00:16.6]}
37... Rb2 {[%clk 0:00:40.2]} 38. Rxc5+ {[%clk 0:00:16.2]} 38... Kd7 {[%clk
0:00:40.8]} 39. Rcc6 {[%clk 0:00:15]} 39... Rxc2 {[%clk 0:00:34.2]} 40. Rd6+
{[%clk 0:00:15]} 40... Kc7 {[%clk 0:00:34.8]} 41. Rxd4 {[%clk 0:00:15.5]} 41...
Bxc4 {[%clk 0:00:35.2]} 42. Rf6 {[%clk 0:00:13]} 42... Be6 {[%clk 0:00:33.1]}
43. Kh2 {[%clk 0:00:13]} 43... Ra2 {[%clk 0:00:32.1]} 44. Rff4 {[%clk
0:00:12.4]} 44... Kc6 {[%clk 0:00:32]} 45. Kg3 {[%clk 0:00:12.1]} 45... Kc5
{[%clk 0:00:32.5]} 46. Rde4 {[%clk 0:00:11.8]} 46... Kd5 {[%clk 0:00:32.4]} 47.
Rb4 {[%clk 0:00:11.4]} 47... Ke5 {[%clk 0:00:32.4]} 48. Rfe4+ {[%clk 0:00:11]}
48... Kf5 {[%clk 0:00:30.3]} 49. Red4 {[%clk 0:00:11.6]} 49... Ra3+ {[%clk
0:00:29.6]} 50. f3 {[%clk 0:00:12]} 50... Ke5 {[%clk 0:00:29.5]} 51. Rd2 {[%clk
0:00:11.5]} 51... Kf6 {[%clk 0:00:26.1]} 52. Kf2 {[%clk 0:00:09.2]} 52... Ke5
{[%clk 0:00:25.7]} 53. Re4+ {[%clk 0:00:08.9]} 53... Kf6 {[%clk 0:00:25.8]} 54.
Rdd4 {[%clk 0:00:08.5]} 54... Kf5 {[%clk 0:00:24.6]} 55. g4+ {[%clk 0:00:07.9]}
55... Kf6 {[%clk 0:00:24.7]} 56. Kg3 {[%clk 0:00:08.5]} 56... Ra2 {[%clk
0:00:21.7]} 57. h5 {[%clk 0:00:08.5]} 57... gxh5 {[%clk 0:00:21.4]} 58. gxh5
{[%clk 0:00:09.4]} 58... Kg5 {[%clk 0:00:21.7]} 59. Re5+ {[%clk 0:00:09.8]}
59... Kh6 {[%clk 0:00:22]} 60. a5 {[%clk 0:00:10.1]} 60... Ra3 {[%clk
0:00:20.4]} 61. Kf4 {[%clk 0:00:10]} 61... Kg7 {[%clk 0:00:18.9]} 62. Rc5 {[%clk
0:00:09.8]} 62... Kh6 {[%clk 0:00:18.8]} 63. Rb4 {[%clk 0:00:09.1]} 63... Kg7
{[%clk 0:00:17]} 64. Rb6 {[%clk 0:00:06.9]} 64... Ra4+ {[%clk 0:00:15.4]} 65.
Ke5 {[%clk 0:00:07.2]} 65... Ra3 {[%clk 0:00:15.4]} 66. f4 {[%clk 0:00:07.3]}
66... Bg4 {[%clk 0:00:13.6]} 67. Kd6 {[%clk 0:00:06.6]} 67... Bf3 {[%clk
0:00:12.2]} 68. Kc7 {[%clk 0:00:06.1]} 68... Kh7 {[%clk 0:00:11.5]} 69. a6
{[%clk 0:00:06.3]} 69... Kg7 {[%clk 0:00:10.9]} 70. h6+ {[%clk 0:00:06.3]} 70...
Kh7 {[%clk 0:00:11]} 71. Rf5 {[%clk 0:00:06.9]} 71... Kg8 {[%clk 0:00:09.3]} 72.
Rb8+ {[%clk 0:00:07.1]} 72... Kh7 {[%clk 0:00:09.8]} 73. Rxf7+ {[%clk
0:00:07.6]} 73... Kxh6 {[%clk 0:00:09.9]} 74. Rb6+ {[%clk 0:00:07.9]} 74... Kh5
{[%clk 0:00:09.3]} 75. Rg7 {[%clk 0:00:05.6]} 75... Ra4 {[%clk 0:00:08.1]} 76.
Rf7 {[%clk 0:00:04.8]} 76... Kg4 {[%clk 0:00:07.9]} 77. Kb8 {[%clk 0:00:04.7]}
77... Bd5 {[%clk 0:00:07.2]} 78. Rff6 {[%clk 0:00:04.6]} 78... Be4 {[%clk
0:00:06.8]} 79. a7 {[%clk 0:00:04.7]} 79... Bf3 {[%clk 0:00:06.9]} 80. Ra6
{[%clk 0:00:05]} 80... Rb4+ {[%clk 0:00:06.4]} 81. Kc7 {[%clk 0:00:05.4]} 81...
Rc4+ {[%clk 0:00:06.9]} 82. Kd8 {[%clk 0:00:04.5]} 82... Rd4+ {[%clk 0:00:06.8]}
83. Rfd6 {[%clk 0:00:04.8]} 83... Rxf4 {[%clk 0:00:06.6]} 84. Rf6 {[%clk
0:00:04.9]} 84... Rd4+ {[%clk 0:00:06.2]} 85. Rfd6 {[%clk 0:00:05.4]} 85... Rf4
{[%clk 0:00:06.4]} 86. Rg6+ {[%clk 0:00:06]} 86... Kh4 {[%clk 0:00:05.4]} 87.
Rh6+ {[%clk 0:00:06]} 87... Kg3 {[%clk 0:00:04.1]} 88. Rag6+ {[%clk 0:00:06.1]}
88... Kf2 {[%clk 0:00:04.5]} 89. Rf6 {[%clk 0:00:05.4]} 89... Rd4+ {[%clk
0:00:04.7]} 90. Kc7 {[%clk 0:00:04.8]} 90... Rc4+ {[%clk 0:00:05.1]} 91. Kb6
{[%clk 0:00:04.7]} 91... Rb4+ {[%clk 0:00:04.5]} 92. Ka5 {[%clk 0:00:04.5]}
92... Rb3 {[%clk 0:00:04.9]} 93. Rxf3+ {[%clk 0:00:04.3]} 93... Rxf3 {[%clk
0:00:03.8]} 94. Ra6 {[%clk 0:00:04.6]} 94... Rf5+ {[%clk 0:00:03.1]} 95. Kb4
{[%clk 0:00:05]} 95... Rf4+ {[%clk 0:00:03.2]} 96. Kb3 {[%clk 0:00:05.2]} 96...
Rf3+ {[%clk 0:00:03.8]} 97. Kb2 {[%clk 0:00:05.6]} 97... Rf8 {[%clk 0:00:04.3]}
98. a8=Q {[%clk 0:00:05.8]} 98... Rxa8 {[%clk 0:00:05.2]} 99. Rxa8 {[%clk
0:00:06]} 1-0

[Event "*** Titled Tuesday Blitz"]
[Site "Chess.com"]
[Date "2021.04.06"]
[Round "7"]
[White "Yurovskykh_Oleksandr"]
[Black "alexrustemov"]
[Result "1/2-1/2"]
[WhiteElo "2538"]
[BlackElo "2664"]
[TimeControl "180+1"]
[EndTime "11:21:33 PDT"]
[Termination "Game drawn by 50-move rule"]

1. d4 {[%clk 0:03:00.9]} 1... g6 {[%clk 0:02:59.4]} 2. e4 {[%clk 0:03:00.3]}
2... Bg7 {[%clk 0:02:59.7]} 3. c3 {[%clk 0:03:00.8]} 3... d6 {[%clk 0:03:00.2]}
4. Bg5 {[%clk 0:02:59.9]} 4... Nf6 {[%clk 0:02:59.2]} 5. Nd2 {[%clk 0:02:59.7]}
5... O-O {[%clk 0:02:56.2]} 6. Ngf3 {[%clk 0:02:59.9]} 6... b6 {[%clk
0:02:54.3]} 7. Bd3 {[%clk 0:02:56.5]} 7... Bb7 {[%clk 0:02:54.1]} 8. Qe2 {[%clk
0:02:55.8]} 8... h6 {[%clk 0:02:53.3]} 9. Bf4 {[%clk 0:02:47.6]} 9... Nh5 {[%clk
0:02:36.3]} 10. Be3 {[%clk 0:02:45.3]} 10... e5 {[%clk 0:02:36.1]} 11. dxe5
{[%clk 0:02:39.6]} 11... dxe5 {[%clk 0:02:36]} 12. O-O {[%clk 0:02:39.3]} 12...
Nf4 {[%clk 0:02:35.5]} 13. Bxf4 {[%clk 0:02:39.5]} 13... exf4 {[%clk 0:02:36.4]}
14. Rad1 {[%clk 0:02:38.9]} 14... Qe7 {[%clk 0:02:34.1]} 15. Rfe1 {[%clk
0:02:37.3]} 15... Nd7 {[%clk 0:02:33.5]} 16. Ba6 {[%clk 0:02:36.1]} 16... Bxa6
{[%clk 0:02:25.7]} 17. Qxa6 {[%clk 0:02:37]} 17... Nc5 {[%clk 0:02:19.8]} 18.
Qc4 {[%clk 0:02:36]} 18... Rad8 {[%clk 0:02:15.1]} 19. Nd4 {[%clk 0:02:22.1]}
19... Qd7 {[%clk 0:01:50]} 20. N2b3 {[%clk 0:02:10]} 20... Qa4 {[%clk
0:01:45.7]} 21. Qxa4 {[%clk 0:01:57.9]} 21... Nxa4 {[%clk 0:01:46.6]} 22. Nc6
{[%clk 0:01:52.8]} 22... Rxd1 {[%clk 0:01:45.8]} 23. Rxd1 {[%clk 0:01:53.7]}
23... Nxb2 {[%clk 0:01:41.7]} 24. Rd7 {[%clk 0:01:53.7]} 24... Na4 {[%clk
0:01:36.2]} 25. c4 {[%clk 0:01:48]} 25... Nc3 {[%clk 0:01:34.4]} 26. f3 {[%clk
0:01:25.9]} 26... Nxa2 {[%clk 0:01:28.8]} 27. Nxa7 {[%clk 0:01:26.1]} 27... c5
{[%clk 0:01:19.1]} 28. Nc6 {[%clk 0:01:20.6]} 28... Nc3 {[%clk 0:01:13.2]} 29.
Ne7+ {[%clk 0:01:05.9]} 29... Kh7 {[%clk 0:01:12.2]} 30. Nd5 {[%clk 0:01:06.8]}
30... b5 {[%clk 0:00:58.7]} 31. cxb5 {[%clk 0:00:59.1]} 31... Nxb5 {[%clk
0:00:59.6]} 32. Rb7 {[%clk 0:00:41.8]} 32... Nc3 {[%clk 0:00:57.3]} 33. Kf1
{[%clk 0:00:38.9]} 33... c4 {[%clk 0:00:53.3]} 34. Na5 {[%clk 0:00:23.7]} 34...
Nxd5 {[%clk 0:00:51.6]} 35. exd5 {[%clk 0:00:24.6]} 35... Rc8 {[%clk 0:00:51.9]}
36. Nc6 {[%clk 0:00:21.3]} 36... c3 {[%clk 0:00:51]} 37. Ke2 {[%clk 0:00:21.3]}
37... Re8+ {[%clk 0:00:45.3]} 38. Re7 {[%clk 0:00:21]} 38... Ra8 {[%clk
0:00:42.4]} 39. Nb4 {[%clk 0:00:13.3]} 39... Ra4 {[%clk 0:00:39.3]} 40. Nc2
{[%clk 0:00:12.2]} 40... Kg8 {[%clk 0:00:34.9]} 41. d6 {[%clk 0:00:11.3]} 41...
Bf6 {[%clk 0:00:24.8]} 42. Re8+ {[%clk 0:00:11.2]} 42... Kg7 {[%clk 0:00:24.7]}
43. d7 {[%clk 0:00:11.8]} 43... Ra2 {[%clk 0:00:13.4]} 44. Kd3 {[%clk
0:00:11.4]} 44... Rb2 {[%clk 0:00:13.2]} 45. d8=Q {[%clk 0:00:10.9]} 45... Bxd8
{[%clk 0:00:13.7]} 46. Rxd8 {[%clk 0:00:11.8]} 46... Rb1 {[%clk 0:00:14.4]} 47.
Kxc3 {[%clk 0:00:11.9]} 47... Rg1 {[%clk 0:00:14.7]} 48. Rd2 {[%clk 0:00:11.9]}
48... g5 {[%clk 0:00:15]} 49. h3 {[%clk 0:00:11.7]} 49... Kg6 {[%clk 0:00:15.3]}
50. Nd4 {[%clk 0:00:12.1]} 50... h5 {[%clk 0:00:15.7]} 51. Kd3 {[%clk
0:00:12.6]} 51... f5 {[%clk 0:00:15.1]} 52. Rc2 {[%clk 0:00:11.9]} 52... g4
{[%clk 0:00:13.9]} 53. Rc6+ {[%clk 0:00:09.9]} 53... Kg5 {[%clk 0:00:13.5]} 54.
h4+ {[%clk 0:00:10.3]} 54... Kxh4 {[%clk 0:00:12.5]} 55. Nxf5+ {[%clk
0:00:10.8]} 55... Kg5 {[%clk 0:00:12.2]} 56. Rc5 {[%clk 0:00:10]} 56... Kf6
{[%clk 0:00:08.8]} 57. fxg4 {[%clk 0:00:07.4]} 57... hxg4 {[%clk 0:00:08.3]} 58.
Nh4 {[%clk 0:00:07.6]} 58... f3 {[%clk 0:00:07.6]} 59. gxf3 {[%clk 0:00:06.7]}
59... gxf3 {[%clk 0:00:08.3]} 60. Ke3 {[%clk 0:00:07.2]} 60... Rh1 {[%clk
0:00:06.4]} 61. Nxf3 {[%clk 0:00:07.4]} 61... Ra1 {[%clk 0:00:06.9]} 62. Ke4
{[%clk 0:00:06.9]} 62... Ke7 {[%clk 0:00:07.4]} 63. Nd4 {[%clk 0:00:06.9]} 63...
Re1+ {[%clk 0:00:07.3]} 64. Kd5 {[%clk 0:00:07.1]} 64... Kf7 {[%clk 0:00:07.4]}
65. Rc7+ {[%clk 0:00:07.4]} 65... Kf6 {[%clk 0:00:07.3]} 66. Rc8 {[%clk
0:00:07.9]} 66... Kf7 {[%clk 0:00:07.4]} 67. Rc6 {[%clk 0:00:07.6]} 67... Rd1
{[%clk 0:00:07]} 68. Ke4 {[%clk 0:00:05.7]} 68... Ke7 {[%clk 0:00:06.9]} 69.
Nf5+ {[%clk 0:00:05.3]} 69... Kd7 {[%clk 0:00:07.2]} 70. Ra6 {[%clk 0:00:06.2]}
70... Re1+ {[%clk 0:00:07.1]} 71. Kd5 {[%clk 0:00:06.6]} 71... Rd1+ {[%clk
0:00:07.5]} 72. Nd4 {[%clk 0:00:07.3]} 72... Ke7 {[%clk 0:00:08.3]} 73. Ra7+
{[%clk 0:00:07.3]} 73... Kf6 {[%clk 0:00:08.6]} 74. Ra8 {[%clk 0:00:07.6]} 74...
Ke7 {[%clk 0:00:09.5]} 75. Rh8 {[%clk 0:00:07.6]} 75... Kd7 {[%clk 0:00:09.8]}
76. Rh7+ {[%clk 0:00:07.9]} 76... Kd8 {[%clk 0:00:10.4]} 77. Ke5 {[%clk
0:00:07.2]} 77... Ke8 {[%clk 0:00:09.9]} 78. Nc6 {[%clk 0:00:04.6]} 78... Re1+
{[%clk 0:00:09.5]} 79. Kf6 {[%clk 0:00:05]} 79... Rf1+ {[%clk 0:00:09.6]} 80.
Ke6 {[%clk 0:00:05.6]} 80... Re1+ {[%clk 0:00:10.1]} 81. Ne5 {[%clk 0:00:06.3]}
81... Kd8 {[%clk 0:00:10.6]} 82. Kd6 {[%clk 0:00:06]} 82... Rd1+ {[%clk
0:00:10.4]} 83. Kc5 {[%clk 0:00:06.5]} 83... Rc1+ {[%clk 0:00:10.3]} 84. Nc4
{[%clk 0:00:06.9]} 84... Ke8 {[%clk 0:00:09.9]} 85. Ra7 {[%clk 0:00:07.5]} 85...
Kf8 {[%clk 0:00:10.1]} 86. Kd5 {[%clk 0:00:07.9]} 86... Kg8 {[%clk 0:00:10.3]}
87. Ne5 {[%clk 0:00:07.6]} 87... Kf8 {[%clk 0:00:10]} 88. Ke6 {[%clk 0:00:08]}
88... Re1 {[%clk 0:00:09.1]} 89. Kf6 {[%clk 0:00:06.1]} 89... Rf1+ {[%clk
0:00:08.8]} 90. Ke6 {[%clk 0:00:05.5]} 90... Re1 {[%clk 0:00:09]} 91. Ra2 {[%clk
0:00:05.3]} 91... Kg7 {[%clk 0:00:09.1]} 92. Rg2+ {[%clk 0:00:05.8]} 92... Kf8
{[%clk 0:00:09.3]} 93. Rg3 {[%clk 0:00:06.7]} 93... Re2 {[%clk 0:00:09.1]} 94.
Kf6 {[%clk 0:00:06.6]} 94... Rf2+ {[%clk 0:00:09.2]} 95. Ke6 {[%clk 0:00:07.2]}
95... Re2 {[%clk 0:00:09.4]} 96. Rf3+ {[%clk 0:00:07.8]} 96... Kg7 {[%clk
0:00:09.1]} 97. Rf7+ {[%clk 0:00:08.4]} 97... Kg8 {[%clk 0:00:08.8]} 98. Rb7
{[%clk 0:00:08.9]} 98... Kf8 {[%clk 0:00:08.8]} 99. Kf6 {[%clk 0:00:09.2]} 99...
Rf2+ {[%clk 0:00:08.7]} 100. Kg5 {[%clk 0:00:09.8]} 100... Re2 {[%clk
0:00:08.3]} 101. Ng6+ {[%clk 0:00:07.4]} 101... Ke8 {[%clk 0:00:08.4]} 102. Nf4
{[%clk 0:00:07.9]} 102... Re1 {[%clk 0:00:08.2]} 103. Kf6 {[%clk 0:00:07.8]}
103... Kd8 {[%clk 0:00:08.6]} 104. Ne6+ {[%clk 0:00:07.1]} 104... Kc8 {[%clk
0:00:08.7]} 105. Rc7+ {[%clk 0:00:07.3]} 105... Kb8 {[%clk 0:00:09.1]} 106. Re7
{[%clk 0:00:08]} 106... Rf1+ {[%clk 0:00:09.1]} 107. Ke5 {[%clk 0:00:07.9]}
107... Re1+ {[%clk 0:00:09.6]} 108. Kd5 {[%clk 0:00:08.4]} 108... Rd1+ {[%clk
0:00:09.9]} 109. Nd4 {[%clk 0:00:08.8]} 109... Rc1 {[%clk 0:00:10]} 110. Kd6
{[%clk 0:00:08.8]} 110... Rd1 {[%clk 0:00:09.7]} 111. Re8+ {[%clk 0:00:09.1]}
1/2-1/2

[Event "*** Titled Tuesday Blitz"]
[Site "Chess.com"]
[Date "2021.04.06"]
[Round "7"]
[White "StockholmMissile"]
[Black "Evgeny81"]
[Result "1-0"]
[WhiteElo "2604"]
[BlackElo "2764"]
[TimeControl "180+1"]
[EndTime "11:21:40 PDT"]
[Termination "StockholmMissile won by resignation"]

1. d4 {[%clk 0:03:00.9]} 1... Nf6 {[%clk 0:02:59.3]} 2. c4 {[%clk 0:03:00.1]}
2... e5 {[%clk 0:02:59.6]} 3. dxe5 {[%clk 0:03:00]} 3... Ne4 {[%clk 0:03:00.1]}
4. a3 {[%clk 0:02:59.9]} 4... Nc6 {[%clk 0:02:58.5]} 5. Nf3 {[%clk 0:02:57.3]}
5... a5 {[%clk 0:02:55.8]} 6. Nbd2 {[%clk 0:02:51.6]} 6... Nc5 {[%clk
0:02:55.4]} 7. Nb3 {[%clk 0:02:47.5]} 7... Nxb3 {[%clk 0:02:49.2]} 8. Qxb3
{[%clk 0:02:47.2]} 8... d6 {[%clk 0:02:48.6]} 9. Bg5 {[%clk 0:02:42.5]} 9... Be7
{[%clk 0:02:45.2]} 10. Bxe7 {[%clk 0:02:42.4]} 10... Qxe7 {[%clk 0:02:46.1]} 11.
exd6 {[%clk 0:02:42.8]} 11... Qxd6 {[%clk 0:02:46.5]} 12. Rd1 {[%clk 0:02:36.9]}
12... Qf6 {[%clk 0:02:45.3]} 13. e3 {[%clk 0:02:33.4]} 13... O-O {[%clk
0:02:40.9]} 14. Be2 {[%clk 0:02:33]} 14... a4 {[%clk 0:02:33]} 15. Qc3 {[%clk
0:02:23.9]} 15... Qxc3+ {[%clk 0:02:32.2]} 16. bxc3 {[%clk 0:02:24.8]} 16... Na5
{[%clk 0:02:15.9]} 17. Nd4 {[%clk 0:02:15.4]} 17... Nb3 {[%clk 0:02:02.5]} 18.
Bf3 {[%clk 0:02:03]} 18... Nc5 {[%clk 0:01:56.2]} 19. Ke2 {[%clk 0:01:58.3]}
19... c6 {[%clk 0:01:53]} 20. Rd2 {[%clk 0:01:34.3]} 20... Re8 {[%clk
0:01:51.1]} 21. Rhd1 {[%clk 0:01:30.5]} 21... Kf8 {[%clk 0:01:50.9]} 22. g3
{[%clk 0:01:19.2]} 22... Ra6 {[%clk 0:01:33.2]} 23. Rb2 {[%clk 0:01:10.9]} 23...
f6 {[%clk 0:01:21.5]} 24. h4 {[%clk 0:01:09.2]} 24... Kf7 {[%clk 0:01:20.7]} 25.
Bh5+ {[%clk 0:01:09.2]} 25... g6 {[%clk 0:01:20.5]} 26. Bf3 {[%clk 0:01:09.8]}
26... Be6 {[%clk 0:01:14.5]} 27. Nxe6 {[%clk 0:01:06.8]} 27... Rxe6 {[%clk
0:01:15.4]} 28. Rd4 {[%clk 0:00:56.4]} 28... Re7 {[%clk 0:01:09.9]} 29. h5
{[%clk 0:00:48.7]} 29... Nb3 {[%clk 0:01:07.5]} 30. Rd8 {[%clk 0:00:41.4]} 30...
Ra5 {[%clk 0:01:05.8]} 31. hxg6+ {[%clk 0:00:21.6]} 31... hxg6 {[%clk
0:01:06.7]} 32. Kf1 {[%clk 0:00:22.1]} 32... Rf5 {[%clk 0:00:56.9]} 33. Kg2
{[%clk 0:00:21.7]} 33... Nc5 {[%clk 0:00:52.4]} 34. Ra8 {[%clk 0:00:15.5]} 34...
Kg7 {[%clk 0:00:51.7]} 35. Rd2 {[%clk 0:00:15.1]} 35... Rfe5 {[%clk 0:00:46.5]}
36. Rdd8 {[%clk 0:00:14.4]} 36... f5 {[%clk 0:00:46.9]} 37. Rg8+ {[%clk
0:00:14]} 37... Kf6 {[%clk 0:00:47.3]} 38. Rgf8+ {[%clk 0:00:14.3]} 38... Kg7
{[%clk 0:00:46.6]} 39. Rg8+ {[%clk 0:00:14.5]} 39... Kf6 {[%clk 0:00:46.9]} 40.
Rgf8+ {[%clk 0:00:15]} 40... Rf7 {[%clk 0:00:47.3]} 41. Rfd8 {[%clk 0:00:12.1]}
41... Ree7 {[%clk 0:00:44.3]} 42. Bd1 {[%clk 0:00:06.6]} 42... Ne4 {[%clk
0:00:39]} 43. Bxa4 {[%clk 0:00:05.1]} 43... Nxc3 {[%clk 0:00:39.3]} 44. Bb3
{[%clk 0:00:04.8]} 44... c5 {[%clk 0:00:31.9]} 45. Rab8 {[%clk 0:00:03.4]} 45...
Rc7 {[%clk 0:00:30.6]} 46. a4 {[%clk 0:00:02.3]} 46... Ne4 {[%clk 0:00:30.1]}
47. Bc2 {[%clk 0:00:02.1]} 47... Ng5 {[%clk 0:00:29.6]} 48. a5 {[%clk
0:00:02.2]} 48... Ne6 {[%clk 0:00:29.9]} 49. Re8 {[%clk 0:00:02]} 49... Rfe7
{[%clk 0:00:26.9]} 50. Bd1 {[%clk 0:00:02.2]} 50... Red7 {[%clk 0:00:25.9]} 51.
Bf3 {[%clk 0:00:02]} 51... Rd2 {[%clk 0:00:25.1]} 52. Bd5 {[%clk 0:00:02.2]}
52... Ng5 {[%clk 0:00:24.5]} 53. Rf8+ {[%clk 0:00:02.5]} 53... Ke7 {[%clk
0:00:23.4]} 54. Rfe8+ {[%clk 0:00:02.1]} 54... Kf6 {[%clk 0:00:23.3]} 55. Rf8+
{[%clk 0:00:02.6]} 55... Kg7 {[%clk 0:00:22.5]} 56. Rg8+ {[%clk 0:00:02.8]}
56... Kh6 {[%clk 0:00:23]} 57. Rh8+ {[%clk 0:00:03.2]} 57... Nh7 {[%clk
0:00:22.5]} 58. Bg8 {[%clk 0:00:02.7]} 58... Ra2 {[%clk 0:00:21.6]} 59. Bxh7
{[%clk 0:00:02.9]} 59... Rxh7 {[%clk 0:00:21.5]} 60. Rxh7+ {[%clk 0:00:03.8]}
60... Kxh7 {[%clk 0:00:22.4]} 61. Rxb7+ {[%clk 0:00:04.2]} 61... Kh6 {[%clk
0:00:22.9]} 62. Rb5 {[%clk 0:00:04.7]} 62... Kg7 {[%clk 0:00:21.9]} 63. Rxc5
{[%clk 0:00:05.1]} 63... Kf6 {[%clk 0:00:22.5]} 64. Rc6+ {[%clk 0:00:05.2]}
64... Ke5 {[%clk 0:00:21]} 65. a6 {[%clk 0:00:06.1]} 65... g5 {[%clk 0:00:20.8]}
66. c5 {[%clk 0:00:04.9]} 66... g4 {[%clk 0:00:20.4]} 67. Rc7 {[%clk 0:00:03.3]}
67... Rxa6 {[%clk 0:00:20.1]} 68. Re7+ {[%clk 0:00:03.5]} 68... Kf6 {[%clk
0:00:20.3]} 69. Rc7 {[%clk 0:00:03.6]} 69... Ra2 {[%clk 0:00:18.9]} 70. c6
{[%clk 0:00:03.9]} 70... Rc2 {[%clk 0:00:18.9]} 71. Rc8 {[%clk 0:00:04.1]} 71...
Rc1 {[%clk 0:00:19.1]} 72. c7 {[%clk 0:00:03.1]} 72... Kg7 {[%clk 0:00:19.5]}
73. Kh2 {[%clk 0:00:02.8]} 73... Kh7 {[%clk 0:00:19]} 74. Rf8 {[%clk 0:00:02.4]}
74... Rxc7 {[%clk 0:00:18.9]} 75. Rxf5 {[%clk 0:00:02.7]} 75... Kg6 {[%clk
0:00:19.6]} 76. Re5 {[%clk 0:00:02.5]} 76... Kf6 {[%clk 0:00:19.4]} 77. Ra5
{[%clk 0:00:02.6]} 77... Kg6 {[%clk 0:00:19.3]} 78. Kg2 {[%clk 0:00:03]} 78...
Rf7 {[%clk 0:00:19.3]} 79. Kf1 {[%clk 0:00:03.2]} 79... Rb7 {[%clk 0:00:18.5]}
80. Rd5 {[%clk 0:00:03.3]} 80... Rb2 {[%clk 0:00:17.7]} 81. Ke1 {[%clk
0:00:03.8]} 81... Ra2 {[%clk 0:00:17.5]} 82. Rd2 {[%clk 0:00:03.6]} 82... Ra7
{[%clk 0:00:15.7]} 83. Ke2 {[%clk 0:00:04.5]} 83... Ra3 {[%clk 0:00:15.9]} 84.
e4 {[%clk 0:00:03.6]} 84... Kg5 {[%clk 0:00:14.6]} 85. Rd3 {[%clk 0:00:03.7]}
85... Ra1 {[%clk 0:00:13.7]} 86. Ke3 {[%clk 0:00:04.6]} 86... Re1+ {[%clk
0:00:13.3]} 87. Kd2 {[%clk 0:00:03.2]} 87... Ra1 {[%clk 0:00:11.9]} 88. Rd5+
{[%clk 0:00:03.7]} 88... Kg6 {[%clk 0:00:11.6]} 89. Ke3 {[%clk 0:00:04]} 89...
Ra2 {[%clk 0:00:10.5]} 90. e5 {[%clk 0:00:03.1]} 90... Kf5 {[%clk 0:00:07.8]}
91. Rb5 {[%clk 0:00:03.6]} 91... Ra3+ {[%clk 0:00:07]} 92. Ke2 {[%clk
0:00:03.9]} 92... Ra2+ {[%clk 0:00:07.1]} 93. Kf1 {[%clk 0:00:04.1]} 93... Ra1+
{[%clk 0:00:04.8]} 94. Kg2 {[%clk 0:00:04.5]} 94... Re1 {[%clk 0:00:05.4]} 95.
Kh2 {[%clk 0:00:02.7]} 95... Rxe5 {[%clk 0:00:05.2]} 96. Rxe5+ {[%clk
0:00:02.1]} 96... Kxe5 {[%clk 0:00:06.1]} 97. Kg2 {[%clk 0:00:02.7]} 97... Ke4
{[%clk 0:00:05.5]} 98. Kf1 {[%clk 0:00:03.6]} 98... Kd3 {[%clk 0:00:05.5]} 99.
Ke1 {[%clk 0:00:03.8]} 99... Kd4 {[%clk 0:00:05.6]} 100. Kd2 {[%clk 0:00:03.7]}
100... Ke4 {[%clk 0:00:05.7]} 101. Ke2 {[%clk 0:00:03.8]} 101... Kf5 {[%clk
0:00:04.8]} 102. Kd3 {[%clk 0:00:03]} 102... Ke5 {[%clk 0:00:03.2]} 103. Ke3
{[%clk 0:00:03.3]} 103... Kf5 {[%clk 0:00:03.7]} 104. Kd4 {[%clk 0:00:03.8]}
104... Kf6 {[%clk 0:00:04]} 105. Ke4 {[%clk 0:00:03]} 105... Kg5 {[%clk
0:00:04.3]} 106. Ke5 {[%clk 0:00:03.3]} 106... Kg6 {[%clk 0:00:04.8]} 107. Kf4
{[%clk 0:00:03.3]} 107... Kh5 {[%clk 0:00:05.4]} 108. Kf5 {[%clk 0:00:03.7]} 1-0

[Event "*** Titled Tuesday Blitz"]
[Site "Chess.com"]
[Date "2021.04.06"]
[Round "8"]
[White "DaroZin"]
[Black "Sychev_Klementy"]
[Result "0-1"]
[WhiteElo "2591"]
[BlackElo "2879"]
[TimeControl "180+1"]
[EndTime "11:23:14 PDT"]
[Termination "Sychev_Klementy won by resignation"]

1. e4 {[%clk 0:03:00.9]} 1... e5 {[%clk 0:02:57.7]} 2. Nf3 {[%clk 0:03:00.6]}
2... Nc6 {[%clk 0:02:58.2]} 3. Bb5 {[%clk 0:03:00.7]} 3... a6 {[%clk 0:02:58.1]}
4. Ba4 {[%clk 0:03:01]} 4... b5 {[%clk 0:02:58.5]} 5. Bb3 {[%clk 0:03:00.3]}
5... Na5 {[%clk 0:02:58.8]} 6. O-O {[%clk 0:02:58.5]} 6... d6 {[%clk 0:02:58.8]}
7. h3 {[%clk 0:02:57.4]} 7... Nf6 {[%clk 0:02:56.6]} 8. Re1 {[%clk 0:02:57.2]}
8... Be7 {[%clk 0:02:52.9]} 9. d4 {[%clk 0:02:52.5]} 9... exd4 {[%clk
0:02:52.9]} 10. Nxd4 {[%clk 0:02:52.1]} 10... c5 {[%clk 0:02:52.7]} 11. Nf3
{[%clk 0:02:49.3]} 11... c4 {[%clk 0:02:51.9]} 0-1